Cogmind - Beta 15 @@@ ROGUE MODE // 2025.08.05 @ 11:51:58 Player: shapeshifter Result: Destroyed by S-43 Plague with Heavy Machine Gun Performance ------------- Evolutions (9) 4500 Regions Visited (18) 3600 Robots Destroyed (0) 0 Value Destroyed (30) 30 Prototype IDs (45) 900 Alien Tech Used (2) 400 Bonus (9412) 9412 TOTAL SCORE: 18842 Bonus ------- Pacifist 8312 Entered DSFs 500 Aligned with FarCom 300 Met Zhirov 300 Cogmind --------- Core Integrity 0/1600 Matter 152/300 Energy 62/100 System Corruption 16% Temperature Cool (0) Movement Core (50) Location -1/Access Parts ------- > --- POWER (2) -------- (None) > --- PROPULSION (10) -- (None) > --- UTILITY (11) ----- Enhanced Optical Array > --- WEAPON (2) ------- (None) > --- INVENTORY (5) ---- Chronowheel Smartbomb Launcher Peak State ------------ > --- POWER ------------ Micro Antimatter Reactor Improved Quantum Reactor > --- PROPULSION ------- Improved Flight Unit Improved Cesium-ion Thruster Impulse Thruster Array Impulse Thruster Array Impulse Thruster Array Impulse Thruster Array > --- UTILITY ---------- Power Amplifier Small Storage Unit Advanced Energy Well Advanced Visual Processing Unit Enhanced Optical Array Stasis Canceller Transmission Jammer ECM Suite Improved Utility Shielding Advanced Force Field Point Defense System > --- WEAPON ----------- (None) > --- INVENTORY -------- Cooled Nuclear Pulse Thruster Q-thruster Q-thruster Impulse Thruster Array Improved Focal Shield Chronowheel Transdimensional Reconstructor [Rating: 146] Favorites ----------- Power Fusion Reactor Engine Light Ion Engine Power Core Light Nuclear Core Reactor Fusion Reactor Propulsion Improved Flight Unit Flight Unit Improved Flight Unit Utility Small Storage Unit Device Power Amplifier Storage Small Storage Unit Processor Advanced Visual Processing Unit Hackware System Shield Protection Improved Light Armor Plating Weapon Plasma Cutter Launcher Grenade Launcher Special Weapon Plasma Cutter Build | -11 -10 -9 -9 -9 -8 -8 -7 -6 -5 -5 -5 -5 -4 -4 -4 -3 -2 -1 ------- Run | Yrd Mat Mat Min Exi Min Mat Fac Fac Fac Upp Upp Zhi Pro Fac DSF Res Res Acc Slots Evolved 18 | . . 2 . . . 2 2 2 2 . . . . 2 . 2 2 2 Power 1 | . . . . . . 1 . . . . . . . . . . . . Propulsion 8 | . . 2 . . . . 2 . . . . . . 2 . 2 . . Utility 9 | . . . . . . 1 . 2 2 . . . . . . . 2 2 Weapon . | . . . . . . . . . . . . . . . . . . . Parts Attached 58 | . . 3 . . 1 7 3 2 6 . . 4 1 2 4 8 4 13 Power 9 | . . 1 . . . 1 . . 1 . . 1 . . . 2 . 3 Engine 2 | . . 1 . . . 1 . . . . . . . . . . . . Core 1 | . . . . . . . . . 1 . . . . . . . . . Reactor 6 | . . . . . . . . . . . . 1 . . . 2 . 3 Propulsion 22 | . . 2 . . . 4 2 . . . . . . 2 2 4 . 6 Treads . | . . . . . . . . . . . . . . . . . . . Leg . | . . . . . . . . . . . . . . . . . . . Wheel . | . . . . . . . . . . . . . . . . . . . Hover . | . . . . . . . . . . . . . . . . . . . Flight 22 | . . 2 . . . 4 2 . . . . . . 2 2 4 . 6 Utility 24 | . . . . . 1 2 1 1 4 . . 3 1 . 2 2 4 3 Device 13 | . . . . . . . . . 4 . . 1 1 . . 2 3 2 Storage 2 | . . . . . . 1 . . . . . 1 . . . . . . Processor 2 | . . . . . . . 1 . . . . . . . . . 1 . Hackware 3 | . . . . . 1 . . . . . . . . . 2 . . . Protection 4 | . . . . . . 1 . 1 . . . 1 . . . . . 1 Artifact . | . . . . . . . . . . . . . . . . . . . Weapon 3 | . . . . . . . . 1 1 . . . . . . . . 1 Energy Gun . | . . . . . . . . . . . . . . . . . . . Energy Cannon . | . . . . . . . . . . . . . . . . . . . Ballistic Gun . | . . . . . . . . . . . . . . . . . . . Ballistic Cannon . | . . . . . . . . . . . . . . . . . . . Launcher 2 | . . . . . . . . . 1 . . . . . . . . 1 Special Weapon 1 | . . . . . . . . 1 . . . . . . . . . . Impact Weapon . | . . . . . . . . . . . . . . . . . . . Slashing Weapon . | . . . . . . . . . . . . . . . . . . . Piercing Weapon . | . . . . . . . . . . . . . . . . . . . Special Melee Weapon . | . . . . . . . . . . . . . . . . . . . Unidentified Prototypes 13 | . . . . . . 1 . . 1 . . 5 . 1 1 1 . 3 Parts Lost 31 | . . . . . . . . . 1 . 2 . . . . 1 1 26 Power 6 | . . . . . . . . . . . 2 . . . . . . 4 Propulsion 13 | . . . . . . . . . . . . . . . . . 1 12 Utility 11 | . . . . . . . . . . . . . . . . 1 . 10 Weapon 1 | . . . . . . . . . 1 . . . . . . . . . Highest Loss Streak 10 | . . . . . . . . . 1 . 1 . . . . 1 1 10 To Critical Strikes 1 | . . . . . . . . . . . . . . . . . . 1 Average Backups 5 | 1 3 2 3 4 5 5 6 7 7 7 7 7 7 5 5 5 6 5 Power . | 1 2 1 1 1 1 . . 1 . . . . . . . . . . Propulsion 2 | . . . . . . 2 1 2 3 3 3 2 2 1 1 3 4 2 Utility . | . 1 1 1 1 1 . . . 1 2 2 2 2 2 1 . . . Weapon . | . . . 1 2 2 2 2 2 1 1 1 . . . . . . . Tool/Special . | . . . . . . . . . . . . . . . . . . . Unused Backups 14 | . . . . . . . . . 3 . . 2 . . 1 3 . 5 Power 2 | . . . . . . . . . . . . . . . . 1 . 1 Propulsion 6 | . . . . . . . . . 1 . . 1 . . 1 2 . 1 Utility 3 | . . . . . . . . . 1 . . 1 . . . . . 1 Weapon 2 | . . . . . . . . . 1 . . . . . . . . 1 Tool/Special 1 | . . . . . . . . . . . . . . . . . . 1 Average Slot Usage (%) 62 | . . 22 33 33 34 66 83 85 87 88 83 75 79 78 74 72 72 52 Engine 3 | . . 7 11 11 11 15 15 13 5 5 . . . . . . . . Reactor 3 | . . . . . . . . . . . . 2 5 5 5 8 8 5 Flight 26 | . . 14 22 22 22 33 45 40 35 35 35 35 35 36 32 30 27 16 Device 11 | . . . . . . . . . 10 17 17 14 14 15 15 17 22 14 Storage 5 | . . . . . . 6 7 6 5 5 5 7 11 10 10 9 8 6 Processor 4 | . . . . . . . 1 6 5 5 5 5 5 5 5 4 4 7 Protection 3 | . . . . . . 2 7 13 11 11 11 7 5 5 2 . . 1 Peak Build Rating 146 | . . 3 3 4 7 23 30 33 51 48 48 64 63 76 99 129 135 146 Average Rating 69 | . . 2 3 3 4 19 29 32 44 48 46 50 60 75 87 124 129 94 On Entrance 41 | . . . 3 3 4 7 23 29 33 48 48 44 58 63 76 99 129 126 Naked Turns 85 | . 75 10 . . . . . . . . . . . . . . . . Heaviest Build 64 | . . 3 3 3 3 16 16 18 24 22 22 24 28 28 28 57 64 63 Greatest Support 75 | 3 3 8 8 8 8 20 30 20 30 30 30 30 30 44 56 75 75 75 Greatest Overweight (x) . | . . . . . . . . . . . . . . . . . . . Average Overweight (x) . | . . . . . . . . . . . . . . . . . . . Largest Inventory Capacity 8 | 5 5 5 5 5 5 8 8 8 8 8 8 8 8 8 8 8 8 8 Average Capacity 7 | 5 5 5 5 5 5 7 8 8 8 8 8 8 8 8 8 8 8 7 Most Carried 8 | 3 3 5 4 5 5 7 8 8 8 8 8 8 8 7 8 8 8 8 Average Carried 6 | 1 3 2 3 4 5 5 6 7 7 8 8 7 7 5 6 7 7 6 Final Capacity 8 | 5 5 5 5 5 5 8 8 8 8 8 8 8 8 8 8 8 8 5 Final Carried 8 | 3 3 3 4 5 5 6 8 8 8 8 8 8 8 5 8 8 8 3 Class Distribution -------------------- 50% | Sprinter 23% | Infiltrator-Sprinter 21% | Mutant 4% | Infiltrator-Mutant Dominant Class ---------------- Mutant | -10/Materials Mutant | -9/Materials Mutant | -9/Mines Mutant | -9/Exiles Mutant | -8/Mines Sprinter | -8/Materials Sprinter | -7/Factory Sprinter | -6/Factory Sprinter | -5/Factory Sprinter | -5/Upper Caves Sprinter | -5/Upper Caves Sprinter | -5/Zhirov Sprinter | -4/Proximity Caves Sprinter | -4/Factory Sprinter | -4/DSF Sprinter | -3/Research Sprinter | -2/Research Infiltrator-Sprinter | -1/Access Resources | -11 -10 -9 -9 -9 -8 -8 -7 -6 -5 -5 -5 -5 -4 -4 -4 -3 -2 -1 ----------- Run | Yrd Mat Mat Min Exi Min Mat Fac Fac Fac Upp Upp Zhi Pro Fac DSF Res Res Acc Matter Collected 710 | 200 . . . . 30 . . . . . . . 66 166 . . 125 123 Remotely . | . . . . . . . . . . . . . . . . . . . Salvage Created . | . . . . . . . . . . . . . . . . . . . Parts . | . . . . . . . . . . . . . . . . . . . Haulers Intercepted . | . . . . . . . . . . . . . . . . . . . Recyclers Shooed . | . . . . . . . . . . . . . . . . . . . Parts Field Recycled . | . . . . . . . . . . . . . . . . . . . Retrieved Matter . | . . . . . . . . . . . . . . . . . . . Parts Self-Destructed . | . . . . . . . . . . . . . . . . . . . Prevented . | . . . . . . . . . . . . . . . . . . . Kills | -11 -10 -9 -9 -9 -8 -8 -7 -6 -5 -5 -5 -5 -4 -4 -4 -3 -2 -1 ------- Run | Yrd Mat Mat Min Exi Min Mat Fac Fac Fac Upp Upp Zhi Pro Fac DSF Res Res Acc Combat Hostiles Destroyed . | . . . . . . . . . . . . . . . . . . . Classes Destroyed . | . . . . . . . . . . . . . . . . . . . Best Kill Streak . | . . . . . . . . . . . . . . . . . . . Combat Bots Only . | . . . . . . . . . . . . . . . . . . . Max Kills in Single Turn . | . . . . . . . . . . . . . . . . . . . Gunslinging . | . . . . . . . . . . . . . . . . . . . Exploded . | . . . . . . . . . . . . . . . . . . . Melee . | . . . . . . . . . . . . . . . . . . . Uniques/NPCs Destroyed . | . . . . . . . . . . . . . . . . . . . Combat | -11 -10 -9 -9 -9 -8 -8 -7 -6 -5 -5 -5 -5 -4 -4 -4 -3 -2 -1 -------- Run | Yrd Mat Mat Min Exi Min Mat Fac Fac Fac Upp Upp Zhi Pro Fac DSF Res Res Acc Hostile Shots Fired 641 | . 41 8 . . . . 2 4 23 . 24 . 33 . 11 80 54 361 Missed 359 | . 15 4 . . . . . 2 10 . 15 . 17 . 7 50 34 205 Hits 282 | . 26 4 . . . . 2 2 13 . 9 . 16 . 4 30 20 156 Melee 5 | . . . . . . . . . . . . . . . 3 . . 2 Projectile 277 | . 26 4 . . . . 2 2 13 . 9 . 16 . 1 30 20 154 AOE 3 | . . . . . . . . . . . . . . . 1 . . 2 Critical Strikes 13 | . . . . . . . . . . . 1 . 2 . 2 1 . 7 Actively Blocked 3 | . . . . . . . . . . . . . 2 . . . . 1 Part Disruptions 1 | . . . . . . . . . . . . . . . . . . 1 Damage Taken 5167 | . 223 38 . . . . 31 39 272 . 154 . 259 . 129 322 228 3472 Core 2093 | . 223 7 . . . . . . 44 . 39 . 66 . 6 85 23 1600 Absorbed by Shields 868 | . . . . . . . . . 18 . . . 20 . 44 273 237 276 Redirected to Shielding 229 | . . . . . . . . 6 6 . 4 . 108 . . . . 105 Ignored by Resistances 110 | . . . . . . . . . . . . . . . . 73 37 . Core Remaining (%) 88 | 100 10 . . . 98 100 100 100 . . . . 85 . 99 93 98 . Volleys Fired 7 | . . . . . . . . . 5 . . . . . . . . 2 Largest 1 | . . . . . . . . . 1 . . . . . . . . 1 Hottest 46 | . . . . . . . . . 30 . . . . . . . . 46 Shots Fired 7 | . . . . . . . . . 5 . . . . . . . . 2 Gun . | . . . . . . . . . . . . . . . . . . . Cannon . | . . . . . . . . . . . . . . . . . . . Launcher 7 | . . . . . . . . . 5 . . . . . . . . 2 Special . | . . . . . . . . . . . . . . . . . . . Kinetic . | . . . . . . . . . . . . . . . . . . . Thermal . | . . . . . . . . . . . . . . . . . . . Explosive 7 | . . . . . . . . . 5 . . . . . . . . 2 Electromagnetic . | . . . . . . . . . . . . . . . . . . . Robot Hit Streak . | . . . . . . . . . . . . . . . . . . . Robot Miss Streak . | . . . . . . . . . . . . . . . . . . . Penetration Max . | . . . . . . . . . . . . . . . . . . . Secondary Targets . | . . . . . . . . . . . . . . . . . . . Shots Hit Robots . | . . . . . . . . . . . . . . . . . . . Core Hits . | . . . . . . . . . . . . . . . . . . . Critical Kills . | . . . . . . . . . . . . . . . . . . . Critical Parts Destroyed . | . . . . . . . . . . . . . . . . . . . Critical Strikes . | . . . . . . . . . . . . . . . . . . . Melee Attacks . | . . . . . . . . . . . . . . . . . . . Impact . | . . . . . . . . . . . . . . . . . . . Slashing . | . . . . . . . . . . . . . . . . . . . Piercing . | . . . . . . . . . . . . . . . . . . . Sneak Attacks . | . . . . . . . . . . . . . . . . . . . Combat Hostiles . | . . . . . . . . . . . . . . . . . . . Follow-up Attacks . | . . . . . . . . . . . . . . . . . . . Damage Inflicted 18 | . 9 . . . . . . 4 . . . . . . . . . 5 Guns . | . . . . . . . . . . . . . . . . . . . Cannons . | . . . . . . . . . . . . . . . . . . . Explosions . | . . . . . . . . . . . . . . . . . . . Melee . | . . . . . . . . . . . . . . . . . . . Ramming 18 | . 9 . . . . . . 4 . . . . . . . . . 5 Kinetic . | . . . . . . . . . . . . . . . . . . . Thermal . | . . . . . . . . . . . . . . . . . . . Explosive . | . . . . . . . . . . . . . . . . . . . Electromagnetic . | . . . . . . . . . . . . . . . . . . . Impact . | . . . . . . . . . . . . . . . . . . . Slashing . | . . . . . . . . . . . . . . . . . . . Piercing . | . . . . . . . . . . . . . . . . . . . Highest Corruption 16 | . 1 . . . . . . . . . . . . . . 5 7 16 Average Corruption 4 | . 1 . . . . . . . . . . . . . . 2 5 6 Corruption Purged . | . . . . . . . . . . . . . . . . . . . Corruption Blocked . | . . . . . . . . . . . . . . . . . . . Effects 18 | . 1 . . . . . . . . . . . . . . 5 . 12 Message Errors 4 | . . . . . . . . . . . . . . . . 2 . 2 Matter Fused 5 | . . . . . . . . . . . . . . . . 1 . 4 Energy Discharges 2 | . 1 . . . . . . . . . . . . . . . . 1 Data Loss (minor) 3 | . . . . . . . . . . . . . . . . 2 . 1 Data Loss (major) 1 | . . . . . . . . . . . . . . . . . . 1 Alerts 2 | . . . . . . . . . . . . . . . . . . 2 Misdirections 1 | . . . . . . . . . . . . . . . . . . 1 Overload Shots . | . . . . . . . . . . . . . . . . . . . Overflow Damage . | . . . . . . . . . . . . . . . . . . . Projectiles . | . . . . . . . . . . . . . . . . . . . Explosions . | . . . . . . . . . . . . . . . . . . . Melee . | . . . . . . . . . . . . . . . . . . . Knockbacks . | . . . . . . . . . . . . . . . . . . . Impact . | . . . . . . . . . . . . . . . . . . . Kinetic . | . . . . . . . . . . . . . . . . . . . Secondary . | . . . . . . . . . . . . . . . . . . . Self-Inflicted Damage 24 | . 4 . . . . . . 2 . . . . . . . . . 18 Shots 1 | . . . . . . . . . . . . . . . . . . 1 Rammed 4 | . 1 . . . . . . 1 . . . . . . . 1 . 1 Targets Rammed 4 | . 1 . . . . . . 1 . . . . . . . 1 . 1 Kicked . | . . . . . . . . . . . . . . . . . . . Crushed . | . . . . . . . . . . . . . . . . . . . Highest Temperature 330 | . . . . . . 1 330 8 . . 7 . . . . 5 224 . Average Temperature 115 | . . . . . . 1 152 8 . . 7 . . . . 2 109 . Received Heat Transfer 291 | . 30 . . . . . 18 18 39 . 36 . 6 . . 30 8 106 Effects 2 | . . . . . . . 2 . . . . . . . . . . . Energy Bleed 2 | . . . . . . . 2 . . . . . . . . . . . Siege Activations . | . . . . . . . . . . . . . . . . . . . Martial Activations . | . . . . . . . . . . . . . . . . . . . Shielding Activations . | . . . . . . . . . . . . . . . . . . . Robots Disrupted . | . . . . . . . . . . . . . . . . . . . Combat Hostiles . | . . . . . . . . . . . . . . . . . . . Robots Corrupted . | . . . . . . . . . . . . . . . . . . . Combat Hostiles . | . . . . . . . . . . . . . . . . . . . Parts Fried . | . . . . . . . . . . . . . . . . . . . Impact Corruptions . | . . . . . . . . . . . . . . . . . . . Robots Melted . | . . . . . . . . . . . . . . . . . . . Combat Hostiles . | . . . . . . . . . . . . . . . . . . . Parts Melted . | . . . . . . . . . . . . . . . . . . . Heat Transferred . | . . . . . . . . . . . . . . . . . . . Parts Sabotaged . | . . . . . . . . . . . . . . . . . . . Parts Stolen . | . . . . . . . . . . . . . . . . . . . Parts Stripped . | . . . . . . . . . . . . . . . . . . . Power Chain Reactions . | . . . . . . . . . . . . . . . . . . . Alert | -11 -10 -9 -9 -9 -8 -8 -7 -6 -5 -5 -5 -5 -4 -4 -4 -3 -2 -1 ------- Run | Yrd Mat Mat Min Exi Min Mat Fac Fac Fac Upp Upp Zhi Pro Fac DSF Res Res Acc Maximum Alert Level . | . . . . . . . . . . . . . . . . . . . Low Security (%) 100 | 100 100 100 100 . 100 100 100 100 100 . . . . 100 100 100 100 100 Level 1 . | . . . . . . . . . . . . . . . . . . . Level 2 . | . . . . . . . . . . . . . . . . . . . Level 3 . | . . . . . . . . . . . . . . . . . . . Level 4 . | . . . . . . . . . . . . . . . . . . . Level 5 . | . . . . . . . . . . . . . . . . . . . High Security . | . . . . . . . . . . . . . . . . . . . Max Security . | . . . . . . . . . . . . . . . . . . . Peak Influence 158 | . 30 89 34 . . . 15 . 71 . . . . 81 53 154 115 158 Initial 81 | . . 3 34 . . . . . . . . . . 81 53 29 78 20 Average 28 | . 7 11 18 . . . 2 . 34 . . . . 78 53 59 72 19 Influence Increases 1150 | . 30 99 . . . . 31 . 109 . 60 . 150 5 . 249 87 330 Successful Hack 167 | . . 39 . . . . 16 . 8 . . . . 5 . 24 27 48 Disable Machine 45 | . . . . . . . . . 15 . . . . . . . . 30 Destroy Structure 98 | . . . . . . . . . 56 . . . . . . . . 42 Partial Spotted 75 | . . . . . . . 15 . 15 . . . . . . 15 . 30 Lose Combat Pursuer 765 | . 30 60 . . . . . . 15 . 60 . 150 . . 210 60 180 Influence Decreases 1066 | . 20 20 89 . . . 31 . 70 35 54 10 20 59 23 163 191 281 Entered New Map 261 | . . 7 55 . . . . . . 15 2 10 . 49 23 24 61 15 Time Decay 613 | . 20 13 34 . . . 31 . 60 20 40 . 20 10 . 129 110 126 Lost Part 182 | . . . . . . . . . 10 . 12 . . . . 10 10 140 Lost Ally 10 | . . . . . . . . . . . . . . . . . 10 . Squads Dispatched 35 | . 2 1 . . . . 2 2 3 . . . . . 1 5 3 16 Investigation 15 | . . 1 . . . . 1 2 2 . . . . . . 2 1 6 Extermination 9 | . . . . . . . . . . . . . . . . 1 2 6 Reinforcement 11 | . 2 . . . . . 1 . 1 . . . . . 1 2 . 4 Assault . | . . . . . . . . . . . . . . . . . . . Garrison . | . . . . . . . . . . . . . . . . . . . Intercept . | . . . . . . . . . . . . . . . . . . . Searches Triggered . | . . . . . . . . . . . . . . . . . . . Construction Impeded . | . . . . . . . . . . . . . . . . . . . Haulers Reinforced . | . . . . . . . . . . . . . . . . . . . Active Scanning Responses . | . . . . . . . . . . . . . . . . . . . Cargo Convoy Interrupts . | . . . . . . . . . . . . . . . . . . . Stealth | -11 -10 -9 -9 -9 -8 -8 -7 -6 -5 -5 -5 -5 -4 -4 -4 -3 -2 -1 --------- Run | Yrd Mat Mat Min Exi Min Mat Fac Fac Fac Upp Upp Zhi Pro Fac DSF Res Res Acc Distress Signals 10 | . . 1 . . . . . . 1 . . . 1 . . 3 1 3 Communications Jammed 63 | . . . . . . . . . 7 . . . . . . 14 16 26 Distress Signals 57 | . . . . . . . . . 7 . . . . . . 14 16 20 Times Spotted 234 | . 9 12 . . . 3 6 3 6 . 9 . 16 . 3 32 20 115 Peak Tracking Total 22 | . 5 12 . . . 3 4 3 7 . 5 . 10 . 3 11 12 22 Tactical Retreats 32 | . 1 1 . . . . . . 1 . 1 . 1 . . 6 3 18 Traps | -11 -10 -9 -9 -9 -8 -8 -7 -6 -5 -5 -5 -5 -4 -4 -4 -3 -2 -1 ------- Run | Yrd Mat Mat Min Exi Min Mat Fac Fac Fac Upp Upp Zhi Pro Fac DSF Res Res Acc Traps Triggered 8 | . . . . . . . . . 1 . . . . . . 2 4 1 Indirectly . | . . . . . . . . . . . . . . . . . . . Trap Hack Attempts . | . . . . . . . . . . . . . . . . . . . Triggered . | . . . . . . . . . . . . . . . . . . . Disarmed . | . . . . . . . . . . . . . . . . . . . Reprogrammed . | . . . . . . . . . . . . . . . . . . . Reused . | . . . . . . . . . . . . . . . . . . . Traps Extracted . | . . . . . . . . . . . . . . . . . . . Installed . | . . . . . . . . . . . . . . . . . . . Triggered . | . . . . . . . . . . . . . . . . . . . Machines | -11 -10 -9 -9 -9 -8 -8 -7 -6 -5 -5 -5 -5 -4 -4 -4 -3 -2 -1 ---------- Run | Yrd Mat Mat Min Exi Min Mat Fac Fac Fac Upp Upp Zhi Pro Fac DSF Res Res Acc Machines Disabled 3 | . . . . . . . . . 1 . . . . . . . . 2 Max in Single Turn 1 | . . . . . . . . . 1 . . . . . . . . 1 Energy Cycler 2 | . . . . . . . . . . . . . . . . . . 2 Machines Repaired . | . . . . . . . . . . . . . . . . . . . Machines Dismantled . | . . . . . . . . . . . . . . . . . . . Machines Sabotaged . | . . . . . . . . . . . . . . . . . . . Overloaded Fab Kills . | . . . . . . . . . . . . . . . . . . . Hacking | -11 -10 -9 -9 -9 -8 -8 -7 -6 -5 -5 -5 -5 -4 -4 -4 -3 -2 -1 --------- Run | Yrd Mat Mat Min Exi Min Mat Fac Fac Fac Upp Upp Zhi Pro Fac DSF Res Res Acc Machines Accessed 43 | . . 3 . 3 . . 5 3 3 . . 5 . 2 . 5 6 8 Terminals 31 | . . 3 . . . . 5 3 1 . . . . 1 . 5 5 8 Fabricators 2 | . . . . . . . . . 1 . . . . . . . 1 . Repair Stations . | . . . . . . . . . . . . . . . . . . . Recycling Units . | . . . . . . . . . . . . . . . . . . . Scanalyzers . | . . . . . . . . . . . . . . . . . . . Garrison Access 2 | . . . . . . . . . 1 . . . . 1 . . . . Total Hacks 100 | . . 11 . 3 . . 12 8 6 . . 18 . 2 . 11 11 18 Successful 40 | . . 6 . 3 . . 3 1 1 . . 18 . 1 . 2 2 3 Failed 60 | . . 5 . . . . 9 7 5 . . . . 1 . 9 9 15 Catastrophic 12 | . . . . . . . 2 1 2 . . . . 1 . 2 1 3 Database Lockouts . | . . . . . . . . . . . . . . . . . . . Manual 27 | . . 9 . 1 . . 8 2 . . . . . . . 2 3 2 Terminals 73 | . . 11 . . . . 12 8 2 . . . . 1 . 11 10 18 Fabricators 3 | . . . . . . . . . 2 . . . . . . . 1 . Repair Stations . | . . . . . . . . . . . . . . . . . . . Recycling Units . | . . . . . . . . . . . . . . . . . . . Scanalyzers . | . . . . . . . . . . . . . . . . . . . Garrison Access 3 | . . . . . . . . . 2 . . . . 1 . . . . Terminal Hacks 34 | . . 3 . 3 . . 1 1 1 . . 18 . 1 . 2 1 3 Record 8 | . . . . 2 . . . . . . . 6 . . . . . . Part Schematic 5 | . . . . . . . . . 1 . . 4 . . . . . . Robot Analysis 4 | . . . . . . . . . . . . 4 . . . . . . Prototype ID Bank 4 | . . . . . . . . . . . . 4 . . . . . . Open DSF 1 | . . . . . . . . . . . . . . 1 . . . . Branch Access Points 1 | . . . . . . . . . . . . . . . . 1 . . Emergency Access Points 1 | . . . . . . . . . . . . . . . . . . 1 Registered Components 1 | . . 1 . . . . . . . . . . . . . . . . Zone Layout 8 | . . 2 . . . . 1 1 . . . . . . . 1 1 2 Proto ID Catalog 1 | . . . . 1 . . . . . . . . . . . . . . Fabricator Hacks 1 | . . . . . . . . . . . . . . . . . 1 . Build 1 | . . . . . . . . . . . . . . . . . 1 . Repair Station Hacks . | . . . . . . . . . . . . . . . . . . . Recycling Unit Hacks . | . . . . . . . . . . . . . . . . . . . Scanalyzer . | . . . . . . . . . . . . . . . . . . . Garrison Access Hacks . | . . . . . . . . . . . . . . . . . . . Unauthorized Hacks 5 | . . 3 . . . . 2 . . . . . . . . . . . Terminals 5 | . . 3 . . . . 2 . . . . . . . . . . . Assimilate 1 | . . . . . . . 1 . . . . . . . . . . . Botnet 4 | . . 3 . . . . 1 . . . . . . . . . . . Fabricators . | . . . . . . . . . . . . . . . . . . . Repair Stations . | . . . . . . . . . . . . . . . . . . . Recycling Units . | . . . . . . . . . . . . . . . . . . . Scanalyzers . | . . . . . . . . . . . . . . . . . . . Garrison Access . | . . . . . . . . . . . . . . . . . . . Data Cores Recovered . | . . . . . . . . . . . . . . . . . . . Used . | . . . . . . . . . . . . . . . . . . . Hacking Detections 32 | . . 3 . . . . 3 3 3 . . . . 2 . 5 5 8 Full Trace Events 16 | . . 3 . . . . 1 2 2 . . . . . . 2 1 5 Feedback Events 3 | . . . . . . . . . . . . . . . . 2 . 1 Corruption 2 | . . . . . . . . . . . . . . . . 1 . 1 Hackware Fried 1 | . . . . . . . . . . . . . . . . 1 . . Feedback Blocked . | . . . . . . . . . . . . . . . . . . . Robot Schematics Acquired . | . . . . . . . . . . . . . . . . . . . Robots Built 1 | . . . . . . . . . . . . . . . . . 1 . Authchips . | . . . . . . . . . . . . . . . . . . . Time 62 | . . . . . . . . . . . . . . . . . 62 . Total Robot Build Rating 7 | . . . . . . . . . . . . . . . . . 7 . Part Schematics Acquired 5 | . . . . . . . . . 1 . . 4 . . . . . . Parts Built . | . . . . . . . . . . . . . . . . . . . Authchips . | . . . . . . . . . . . . . . . . . . . Time . | . . . . . . . . . . . . . . . . . . . Total Part Build Rating . | . . . . . . . . . . . . . . . . . . . Parts Repaired . | . . . . . . . . . . . . . . . . . . . Time . | . . . . . . . . . . . . . . . . . . . Parts Recycled . | . . . . . . . . . . . . . . . . . . . Recycled Matter . | . . . . . . . . . . . . . . . . . . . Retrieved Matter . | . . . . . . . . . . . . . . . . . . . Retrieved Components . | . . . . . . . . . . . . . . . . . . . Parts Scanalyzed . | . . . . . . . . . . . . . . . . . . . Part Schematics Acquired . | . . . . . . . . . . . . . . . . . . . Parts Damaged . | . . . . . . . . . . . . . . . . . . . Bothacking | -11 -10 -9 -9 -9 -8 -8 -7 -6 -5 -5 -5 -5 -4 -4 -4 -3 -2 -1 ------------ Run | Yrd Mat Mat Min Exi Min Mat Fac Fac Fac Upp Upp Zhi Pro Fac DSF Res Res Acc Used RIF Installer . | . . . . . . . . . . . . . . . . . . . Robots Hacked . | . . . . . . . . . . . . . . . . . . . Non-combat . | . . . . . . . . . . . . . . . . . . . Combat . | . . . . . . . . . . . . . . . . . . . Robot Hacks Applied . | . . . . . . . . . . . . . . . . . . . Relay Couplers Released . | . . . . . . . . . . . . . . . . . . . Fabnet Peak Effective % . | . . . . . . . . . . . . . . . . . . . Robots Rewired . | . . . . . . . . . . . . . . . . . . . Allies Hacked . | . . . . . . . . . . . . . . . . . . . Hacks Repelled . | . . . . . . . . . . . . . . . . . . . Allies | -11 -10 -9 -9 -9 -8 -8 -7 -6 -5 -5 -5 -5 -4 -4 -4 -3 -2 -1 -------- Run | Yrd Mat Mat Min Exi Min Mat Fac Fac Fac Upp Upp Zhi Pro Fac DSF Res Res Acc Total Allies 2 | . . . . . . . 1 . . . . . . . . . 1 . Largest Group 1 | . . . . . . . 1 . . . . . . . . . 1 . Highest-Rated Group 33 | . . . . . . . 10 . . . . . . . . . 33 . Highest-Rated Ally 33 | . . . . . . . 10 . . . . . . . . . 33 . Total Orders . | . . . . . . . . . . . . . . . . . . . Ally Attacks . | . . . . . . . . . . . . . . . . . . . Total Damage . | . . . . . . . . . . . . . . . . . . . Kills . | . . . . . . . . . . . . . . . . . . . Allies Corrupted . | . . . . . . . . . . . . . . . . . . . Allies Melted . | . . . . . . . . . . . . . . . . . . . Intel | -11 -10 -9 -9 -9 -8 -8 -7 -6 -5 -5 -5 -5 -4 -4 -4 -3 -2 -1 ------- Run | Yrd Mat Mat Min Exi Min Mat Fac Fac Fac Upp Upp Zhi Pro Fac DSF Res Res Acc Active Infowar (turns) 1907 | . . . . . . . 49 75 147 40 100 103 70 24 36 278 237 748 Optics 1907 | . . . . . . . 49 75 147 40 100 103 70 24 36 278 237 748 Cloaking 75 | . . . . . . . . . . . . . . . . . . 75 Jamming 1385 | . . . . . . . . . 59 40 100 64 70 24 33 278 237 480 ECM 678 | . . . . . . . . . . . . . . . . . 123 555 Robot Analysis Total 4 | . . . . . . . . . . . . 4 . . . . . . Derelict Logs Recovered 2 | . . . . . . . . . . 1 1 . . . . . . . Drone Launches . | . . . . . . . . . . . . . . . . . . . Drone Recoveries . | . . . . . . . . . . . . . . . . . . . Exploration | -11 -10 -9 -9 -9 -8 -8 -7 -6 -5 -5 -5 -5 -4 -4 -4 -3 -2 -1 ------------- Run | Yrd Mat Mat Min Exi Min Mat Fac Fac Fac Upp Upp Zhi Pro Fac DSF Res Res Acc Turns Passed 2493 | 16 75 54 81 88 65 64 192 75 147 40 100 103 70 24 36 278 237 748 Spaces Moved 7363 | 26 147 125 210 234 162 165 563 226 416 161 298 147 265 100 74 982 911 2151 Core 348 | 26 147 15 . . . . . . . . . . . . . . . 160 Treads . | . . . . . . . . . . . . . . . . . . . Legs . | . . . . . . . . . . . . . . . . . . . Wheels . | . . . . . . . . . . . . . . . . . . . Hover . | . . . . . . . . . . . . . . . . . . . Flight 7015 | . . 110 210 234 162 165 563 226 416 161 298 147 265 100 74 982 911 1991 Fastest Speed 21 | 50 50 37 37 37 37 31 25 31 25 25 25 25 25 21 21 23 23 26 Average Speed 29 | 50 50 38 37 37 37 31 29 31 25 25 29 29 25 21 25 25 24 32 Slowest Speed 50 | 50 50 50 37 37 37 37 31 31 28 25 31 34 25 21 29 29 26 50 Overloaded Moves . | . . . . . . . . . . . . . . . . . . . Propulsion Burnouts . | . . . . . . . . . . . . . . . . . . . Robots Hopped 138 | . . . 1 . . . 2 5 6 . 2 . 7 . 1 23 21 70 Potential Cave-ins . | . . . . . . . . . . . . . . . . . . . Cave-ins Triggered . | . . . . . . . . . . . . . . . . . . . Teleports 1 | . . . . . . . . . . . . . . . . . . 1 Exploration Rate (%) 37 | 3 29 24 53 61 48 21 19 7 16 39 55 61 54 4 89 39 34 65 Regions Visited 18 Branch Regions 7 Pre-discovered Areas 4 | . . . . 1 . . . . . . . 3 . . . . . . Known Exits Taken 1 | . . . . . . . . . . . . . . 1 . . . . Unknown Exits Taken 16 | 1 1 1 1 1 1 1 1 1 1 1 1 1 1 . . 1 1 . Scrap Searched 5 | . . . . . 1 . . . . 1 1 . 2 . . . . . Spaces Dug 5 | . . . . . . . . . 5 . . . . . . . . . Terrain Destroyed 49 | . . . . . . . . . 35 . . . . . . . . 14 Melee . | . . . . . . . . . . . . . . . . . . . Projectile . | . . . . . . . . . . . . . . . . . . . AOE 49 | . . . . . . . . . 35 . . . . . . . . 14 Terrain Rammed . | . . . . . . . . . . . . . . . . . . . Walls Destroyed . | . . . . . . . . . . . . . . . . . . . Machines Disabled . | . . . . . . . . . . . . . . . . . . . Actions | -11 -10 -9 -9 -9 -8 -8 -7 -6 -5 -5 -5 -5 -4 -4 -4 -3 -2 -1 --------- Run | Yrd Mat Mat Min Exi Min Mat Fac Fac Fac Upp Upp Zhi Pro Fac DSF Res Res Acc Total 7501 | 28 147 130 211 234 165 177 588 225 445 160 308 206 260 102 92 988 898 2137 Wait 99 | . . . 2 . 3 . 20 . . . 13 43 1 . . 3 . 14 Move 7099 | 25 146 124 207 233 161 164 559 217 403 160 294 146 250 99 71 936 871 2033 Hop 110 | . . . 1 . . . 1 4 6 . 1 . 7 . 1 23 18 48 Pick Up 55 | 3 . 3 1 1 . 4 5 2 5 . . 3 1 . 5 11 1 10 Fast Attach 25 | . . . . . 1 2 . . 3 . . 6 . . 2 3 3 5 Attach 40 | . . 3 . . . 3 2 2 3 . . . 1 2 4 5 2 13 Detach 8 | . . . . . . . . . 2 . . . . . 1 . 1 4 Swap 5 | . . . . . . 2 1 . 1 . . . . . . 1 . . Drop 40 | . . . . . . 2 . . 6 . . 8 . 1 8 6 2 7 Fire 7 | . . . . . . . . . 5 . . . . . . . . 2 Melee . | . . . . . . . . . . . . . . . . . . . Ram 2 | . 1 . . . . . . . . . . . . . . . . 1 Kick . | . . . . . . . . . . . . . . . . . . . Crush . | . . . . . . . . . . . . . . . . . . . Escape Stasis 11 | . . . . . . . . . 11 . . . . . . . . . Rewire . | . . . . . . . . . . . . . . . . . . . Trap . | . . . . . . . . . . . . . . . . . . . Miscellaneous . | . . . . . . . . . . . . . . . . . . . Route ------- -11/Scrapyard -10/Materials -9/Materials -9/Mines (discovered 3 exits: [*Mat x2] / *Exi) -9/Exiles -8/Mines -8/Materials -7/Factory -6/Factory (discovered 2 exits: *Fac / [*Low]) -5/Factory -5/Upper Caves -5/Upper Caves -5/Zhirov -4/Proximity Caves -4/Factory -4/DSF -3/Research (discovered 3 exits: *Res / *Tes x2) -2/Research -1/Access History --------- Turn | Location | Event 10 | -11/Scrapyard | Discovered new exit (range 15) 17 | -11/Scrapyard | Entered Materials 76 | -10/Materials | Core integrity fell below 50% 89 | -10/Materials | Discovered new exit (range 7) 90 | -10/Materials | Core integrity fell below 20% 92 | -10/Materials | Entered another Materials area 92 | -9/Materials | Evolved 2 slots: Propulsion x2 142 | -9/Materials | Discovered new exit (range 11) 146 | -9/Materials | Entered Mines 202 | -9/Mines | Discovered new exit (range 8) 212 | -9/Mines | YI-UF0 nonchalantly dropped a Grenade Launcher on the ground 218 | -9/Mines | Discovered new exit (range 9) 225 | -9/Mines | Deemed a non-threat by the Exiles lab entrance 225 | -9/Mines | Discovered new exit (range 5) 227 | -9/Mines | Entered Exiles 236 | -9/Exiles | Met 8R-AWN 243 | -9/Exiles | Met EX-HEX 253 | -9/Exiles | Met EX-BIN 257 | -9/Exiles | Aligned with FarCom system 258 | -9/Exiles | Given EX-Vault access code 266 | -9/Exiles | Opened EX-Vault 269 | -9/Exiles | Found Chronowheel 277 | -9/Exiles | Warned to stay clear of 0b10 Research branches 283 | -9/Exiles | Exiles lab attacked by MAIN.C 298 | -9/Exiles | Learned location of Zion (-7) 310 | -9/Exiles | Discovered new exit (range 12) 315 | -9/Exiles | Build established: Mutant 315 | -9/Exiles | Left Exiles lab with Chronowheel 315 | -9/Exiles | Entered Mines 370 | -8/Mines | Discovered new exit (range 15) 380 | -8/Mines | Entered Materials 380 | -8/Materials | Evolved 2 slots: Power x1, Utility x1 443 | -8/Materials | Discovered new exit (range 5) 444 | -8/Materials | Entered Factory 444 | -7/Factory | Evolved 2 slots: Propulsion x2 623 | -7/Factory | Discovered new exit (range 7) 636 | -7/Factory | Entered another Factory area 636 | -6/Factory | Evolved 2 slots: Utility x2 658 | -6/Factory | Build established: Sprinter 695 | -6/Factory | Discovered new exit (range 9) 702 | -6/Factory | Discovered new exit (range 13) 711 | -6/Factory | Entered another Factory area 711 | -5/Factory | Evolved 2 slots: Utility x2 855 | -5/Factory | Discovered new exit (range 12) 858 | -5/Factory | Entered Upper Caves 872 | -5/Upper Caves | Learned Factory emergency access door positions 896 | -5/Upper Caves | Discovered new exit (range 8) 898 | -5/Upper Caves | Entered another Upper Caves area 908 | -5/Upper Caves | Learned 12 Factory zone layouts 983 | -5/Upper Caves | Attracted the attention of an 0b10 checkpoint 997 | -5/Upper Caves | Discovered new exit (range 6) 998 | -5/Upper Caves | Entered Zhirov 998 | -5/Zhirov | Discovered new exit (range 3) 1010 | -5/Zhirov | Met Zhirov 1016 | -5/Zhirov | Learned location of Quarantine (-2) 1016 | -5/Zhirov | Learned location of Testing (-3) 1016 | -5/Zhirov | Learned location of Command (-1) 1020 | -5/Zhirov | Zhirov requested help retrieving the SGEMP Prototype 1027 | -5/Zhirov | Found Alien Artifact 1027 | -5/Zhirov | Identified Integrated Dissipator 1027 | -5/Zhirov | Installed Integrated Dissipator, increased core heat dissipation (+20) 1091 | -5/Zhirov | Found Alien Artifact 1101 | -5/Zhirov | Entered Proximity Caves 1114 | -4/Proximity Caves | Spotted B-86 Titan 1134 | -4/Proximity Caves | Attracted the attention of an 0b10 outpost 1152 | -4/Proximity Caves | Attracted the attention of an 0b10 checkpoint 1166 | -4/Proximity Caves | Discovered new exit (range 18) 1171 | -4/Proximity Caves | Entered Factory 1171 | -4/Factory | Evolved 2 slots: Propulsion x2 1195 | -4/Factory | Identified exit to DSF 1195 | -4/Factory | Entered DSF 1207 | -4/DSF | Found Prototype Hackware 1207 | -4/DSF | Identified Exp. System Shield 1212 | -4/DSF | Additional patrols routed to DSF 1227 | -4/DSF | Discovered new exit (range 14) 1231 | -4/DSF | Entered Research 1231 | -3/Research | Evolved 2 slots: Propulsion x2 1286 | -3/Research | Adv. Hacking Suite fried by hacking feedback 1294 | -3/Research | Identified exit to Testing 1379 | -3/Research | Spotted B-86 Titan 1430 | -3/Research | Spotted B-86 Titan 1507 | -3/Research | Discovered new exit (range 9) 1509 | -3/Research | Entered another Research area 1509 | -2/Research | Evolved 2 slots: Utility x2 1553 | -2/Research | Spotted B-90 Cyclops 1581 | -2/Research | Spotted B-90 Cyclops 1665 | -2/Research | Fabricated M-30 Cleanser? 1740 | -2/Research | Discovered new exit (range 19) 1742 | -2/Research | Spotted B-90 Cyclops 1746 | -2/Research | Entered Access 1746 | -1/Access | Evolved 2 slots: Utility x2 1921 | -1/Access | Build established: Infiltrator-Sprinter 1951 | -1/Access | Spotted B-99 Colossus 2183 | -1/Access | Lost 7 parts (5n2u) 2296 | -1/Access | Energy Cycler disabled 2357 | -1/Access | Core integrity fell below 50% 2360 | -1/Access | System corruption reached 10% 2396 | -1/Access | Lost 10 parts (1p4n5u) 2430 | -1/Access | Spotted B-99 Colossus 2458 | -1/Access | Core integrity fell below 20% 2460 | -1/Access | Identified Transdimensional Reconstructor 2460 | -1/Access | Warped through subspace 2487 | -1/Access | Lost 4 parts (1p2n1u) 2494 | -1/Access | Destroyed by S-43 Plague with Heavy Machine Gun Last Messages --------------- 02450_ Penetrated by Slug. 02453_ ALERT: Suspicious intruders detected, dispatching Cutter reinforcements to area. 02456_ Nuclear Pulse Array destroyed. 02456_ Knocked back. 02457_ C-57 Dissector knocked back. 02457_ K-01 Serf destroyed. 02457_ C-57 Dissector knocked back. 02457_ T-07 Excavator destroyed. 02457_ Knocked back. 02460_ Identified Transdimensional Reconstructor. 02460_ Warped through subspace. 02465_ System corrupted: IFF burst signal emitted. 02467_ Penetrated by Slug. 02472_ Slug penetrates Wall. 02481_ N:K <3I5VH TU|RFP6TWDPZ/|AS|S0&SO= IQL 02483_ Drone sends a signal. 02493_ Transmission Jammer destroyed. Map ----- +----------------------------------------------------+ | ??# #???????????# ? ????????????????? | | ??# #???????????#?? " ???????????????? | | ??## ##########?????# ???????????????? | | ???# # #?????# ???????????????? | | ???# + #?????# ???????????????? | | ???# # !!! #?????####+###???????????????? | | ???# # !!! #????????????????????????????? | | ???# #? !! #????????????????????????????? | | ???# #?########????????????????????????????? | | ???# ##########????????????????????????????? | | ???# +????????????????????????????? | | ???# #####+####????????????????????????????? | | ???# # #????????????????????????????? | | ???# # #????????????????????????????? | | ???# + #????????????????????????????? | | ???# # #?????????????????????? ????? | | ???# # #?#########??????????? ????? | | ???# # [!! #?# #######+### ???? | | ???# # [! #?# ???? | | ???# h# [! #?# ???? | | ???# ##########?# ????? | | ??## ##?????????# ""G"" ss s ""?????? | | ??# ########### " " ss """??????? | | ??# " " """"?????? | | ??# ####### """"" ?? | | ??# #?????# @ ?? | | ??# #### #?????# !! ? | | #####+###### #?????# !! ? | | # !## #?????# ! ? | | # ! ## #?????# ######## ? | | # ## #???### ###????# *%*#####???? | | # ## #???# #?????!%= ####????? | | # ! ## #???# #?????== # ?????? | | # !! = ## #???# #?????? # ?????? | | # ![ + #???# #?????? ??????? | | # ## #???# " #?????## ??????? | | ############ #???# #?????# #####??? | | ???????????# #???# #????## # #?? | | ??########?# #???# #????# ## | | ??# #?# #???# #???### | | ??# #?# #???## ##???# | | ??# #?# #????# #????# | | ??# #?# #????# #????## ### | | ??# #?# #????# #?????## ###??? | | ????! ??# #????# #?????? #??? | | ????##+##### #????# #??????# #??? | | ????# #????# #??????# # #??? | | ????# #????# #??????# # #??? | | ????# #????# #?###### # #??? | | ????## #????# # ## ## # #??? | +----------------------------------------------------+ Best States ------------- Heat Dissipation 79 Energy Generation 50 Energy Capacity 1035 Matter Stores 300 Matter Capacity 300 Sight Range 22 Terrain Scan Density 10 ECM Strength 1 Jamming Range 12 Cloak Strength 4 Power Amplification 20 Armor Coverage 150 Resistance: KI 30 Utility Shielding 90 Point Defense Rating 80 Evasion (%) 65 Offensive Hacking 14 Defensive Hacking 10 Item Schematics ----------------- Q-thruster | -5/Factory | Hacked Assault Drone Bay | -5/Zhirov | Free Exp. Heat Sink | -5/Zhirov | Free Exp. Optical Array | -5/Zhirov | Free Imp. Arc Thrower | -5/Zhirov | Free Robot Schematics ------------------ None Fabricated ------------ M-30 Cleanser | x1 | -2/Research | Preloaded Repaired ---------- Nothing Alien Tech Used ----------------- Integrated Dissipator Transdimensional Reconstructor Achievements -------------- None Challenges ------------ None Game ------ Seed GuidanceAssemblyProtomatter Manual? 0 Play Time 01:07:41 Cumulative 102.6 hours Start 2025.08.05 @ 10:44:50 End 2025.08.05 @ 11:51:58 Sessions 1 Manual Loads 0 Difficulty Rogue Special Mode None Game No. 183 Rogue 183 Adventurer 0 Explorer 0 Win Type - Total 1 Types 1/0/0/0/0/0/0/0/0/0 Lore% 65 Gallery% 60 Achievement% 43 Wizard Run 0 Options --------- Layout 1 ASCII 0 Keyboard 0 Movement Mouse Keybinds 0 Fullscreen 1 Font 24/Smallcaps Map View 50x35 Zoom Use 0% Tactical HUD 1 Map Filters NONE Filters NONE Steam 1 RUN: 7835aad2-9c25-4dbd-8cf8-b95335f3eea9